bitfinex-derivatives/quotes_BTCF0:USTF0_20250411
["timestamp","ask_amount","ask_price","bid_price","bid_amount"]
[1744379068675,0.2064883,83044.0,83043.0,0.01716446]
[1744379068877,0.1204908,83042.0,83041.0,0.1204922]
[1744379069086,0.1204908,83042.0,83041.0,0.13750977]
[1744379069987,0.4812908,83042.0,83041.0,0.01701757]
[1744379070188,0.0602511,83036.0,83032.0,0.00018069]
[1744379070390,0.1205038,83034.0,83033.0,0.01706285]
[1744379070578,0.1205038,83033.0,83032.0,0.00018069]
[1744379070888,0.2827038,83033.0,83032.0,0.00018069]
[1744379071190,0.2827038,83033.0,83032.0,0.01722492]
[1744379071691,0.2827038,83033.0,83032.0,0.00018069]
[1744379072289,0.6435038,83033.0,83032.0,0.13767196]
[1744379072488,0.1204889,83044.0,83032.0,0.01716666]
[1744379072793,0.1205024,83034.0,83033.0,0.01698597]
[1744379072995,0.4813024,83034.0,83033.0,0.01698597]
[1744379073391,0.4813024,83034.0,83032.0,0.00018069]
[1744379073392,0.1205038,83033.0,83032.0,0.00018069]
[1744379073590,0.2942038,83033.0,83032.0,0.00018069]
[1744379075285,4e-05,83033.0,83032.0,0.13763166]
[1744379075486,0.4813438,83033.0,83032.0,0.01712636]
[1744379075686,0.4813438,83033.0,83032.0,0.00018069]
[1744379075882,0.1807789,83024.0,83021.0,0.06378069]
[1744379076087,0.1807789,83024.0,83023.0,0.1205183]
[1744379076088,0.601838,83024.0,83023.0,0.1205183]
[1744379076294,0.601838,83024.0,83023.0,0.13771956]
[1744379076589,0.241038,83024.0,83023.0,0.13772763]
[1744379076794,0.36084,83033.0,83030.0,0.0602534]
[1744379076996,0.1205053,83032.0,83031.0,0.01720933]
[1744379077185,0.2054053,83032.0,83031.0,0.01720933]
[1744379077389,0.2054053,83032.0,83031.0,0.13771613]
[1744379077797,0.2054453,83032.0,83031.0,0.13771613]
[1744379077990,0.2054053,83032.0,83031.0,0.13771613]
[1744379078186,0.5662053,83032.0,83031.0,0.13771613]
[1744379078386,4e-05,83032.0,83031.0,0.49851613]
[1744379078591,0.00018069,83040.0,83039.0,0.1204951]
[1744379078894,0.00018069,83040.0,83039.0,0.13770443]
[1744379079103,0.12067439,83040.0,83039.0,0.15314729]
[1744379079295,0.12067439,83040.0,83039.0,0.19995219]
[1744379079600,0.00018069,83040.0,83039.0,0.13770443]
[1744379079804,0.12071439,83040.0,83039.0,0.13770443]
[1744379080298,0.12071439,83040.0,83039.0,0.01720933]
[1744379080504,0.1205169,83024.0,83003.0,0.4210735]
[1744379080700,0.4813169,83024.0,83022.0,0.0861]
[1744379081005,0.4813169,83024.0,83010.0,0.0868]
[1744379081204,0.4813169,83024.0,83010.0,0.1470685]
[1744379081504,0.4813169,83024.0,83011.0,0.0861]
[1744379082002,0.0602678,83012.0,83000.0,0.1]
[1744379082207,0.4813503,83001.0,83000.0,0.1]
[1744379082409,0.1205503,83001.0,83000.0,0.1]
[1744379083204,0.1205721,82986.0,82976.0,0.35007832]
[1744379083408,0.4813721,82986.0,82982.0,0.1205774]
[1744379083611,0.4813721,82986.0,82977.0,0.0809]
[1744379083806,0.8421721,82986.0,82978.0,0.1205831]
[1744379084006,0.4813721,82986.0,82977.0,0.0809]
[1744379084209,0.4813721,82986.0,82985.0,0.12539372]
[1744379084414,0.0602765,83000.0,82985.0,0.36562012]
[1744379084711,5.401e-05,82997.0,82994.0,0.0602796]
[1744379084900,0.18088981,82997.0,82996.0,0.1205576]
[1744379085106,0.5416358,82997.0,82996.0,0.1205576]
[1744379085302,0.6231758,82997.0,82996.0,0.2883576]
[1744379085606,0.4211182,82997.0,82996.0,0.0809]
[1744379085809,0.1205605,82994.0,82993.0,0.1205618]
[1744379086011,0.180853,82990.0,82989.0,0.2026677]
[1744379086412,0.1205644,82994.0,82992.0,0.060281]
[1744379086715,0.1808454,82994.0,82993.0,0.2843605]
[1744379087513,4e-05,82997.0,82996.0,0.1205576]
[1744379087807,0.1205605,82994.0,82993.0,0.1638]
[1744379088007,0.1205706,82987.0,82986.0,0.0817]
[1744379088219,0.4813706,82987.0,82986.0,0.1638]
[1744379089118,0.4813706,82987.0,82986.0,0.0821]
[1744379089416,0.4813706,82987.0,82986.0,0.2026721]
[1744379089615,0.4813706,82987.0,82986.0,0.2861721]
[1744379090219,0.4813706,82987.0,82986.0,0.0821]
[1744379090413,0.1205721,82986.0,82985.0,0.00482012]
[1744379090615,0.2025721,82986.0,82985.0,0.00482012]
[1744379091821,0.1205721,82986.0,82985.0,0.12539372]
[1744379092019,0.1206121,82986.0,82985.0,0.12539372]
[1744379092216,0.4814121,82986.0,82985.0,0.00482012]
[1744379092524,0.4814121,82986.0,82985.0,0.12539372]
[1744379093419,0.1206121,82986.0,82985.0,0.12539372]
[1744379094114,0.1206121,82986.0,82985.0,0.00482012]
[1744379094726,0.4814121,82986.0,82985.0,0.00482012]
[1744379096022,0.5653121,82986.0,82985.0,0.00482012]
[1744379096226,0.8153121,82986.0,82985.0,2e-08]
[1744379096728,0.5653121,82986.0,82985.0,2e-08]
[1744379097033,0.5652721,82986.0,82985.0,2e-08]
[1744379097324,0.8153121,82986.0,82985.0,2e-08]
[1744379098029,0.6511121,82986.0,82985.0,2e-08]
[1744379098329,0.9011121,82986.0,82985.0,2e-08]
[1744379100228,0.6511121,82986.0,82985.0,2e-08]
[1744379100626,0.6510721,82986.0,82985.0,2e-08]
[1744379100832,0.9010721,82986.0,82985.0,2e-08]
[1744379101029,0.6510721,82986.0,82985.0,2e-08]
[1744379101231,0.9010721,82986.0,82985.0,2e-08]
[1744379101530,0.9011121,82986.0,82985.0,2e-08]
[1744379102121,0.6511121,82986.0,82985.0,2e-08]
[1744379102319,0.2903121,82986.0,82985.0,2e-08]
[1744379102520,0.10715076,82990.0,82985.0,2e-08]
[1744379102722,0.10715076,82990.0,82985.0,0.12057362]
[1744379102723,0.1206121,82986.0,82985.0,0.12057362]
[1744379103026,0.1206121,82986.0,82985.0,2e-08]
[1744379103730,0.4813721,82986.0,82985.0,0.12057362]
[1744379103933,0.4814121,82986.0,82985.0,2e-08]
[1744379104229,0.4814121,82986.0,82985.0,0.12057362]
[1744379104418,4e-05,82986.0,82985.0,0.12057362]
[1744379104625,0.1205721,82986.0,82985.0,2e-08]
[1744379104926,0.1206121,82986.0,82985.0,0.37057362]
[1744379105224,0.1206121,82986.0,82985.0,0.12057362]
[1744379105627,0.0602843,82989.0,82988.0,0.1205677]
[1744379106230,0.0602843,82989.0,82985.0,2e-08]
[1744379106421,0.1205721,82987.0,82986.0,0.1808545]
[1744379106830,0.1206121,82987.0,82986.0,0.2411404]
[1744379107130,0.1205644,82992.0,82989.0,0.0602838]
[1744379107330,0.1205721,82986.0,82985.0,2e-08]
[1744379107524,0.4813721,82986.0,82985.0,2e-08]
[1744379107722,0.7313721,82986.0,82985.0,2e-08]
[1744379108227,0.0602959,82973.0,82961.0,1e-08]
[1744379108422,0.1206419,82938.0,82922.0,0.0091194]
[1744379108618,0.4814419,82938.0,82925.0,0.0603299]
[1744379108826,0.4814419,82938.0,82927.0,0.0603284]
[1744379109025,0.1206819,82938.0,82937.0,0.12546621]
[1744379109228,0.4814819,82938.0,82937.0,0.00482291]
[1744379110219,0.4814819,82938.0,82937.0,0.12546621]
[1744379110423,0.36084,82938.0,82937.0,0.12546621]
[1744379110619,0.0001808,82946.0,82945.0,0.1206317]
[1744379110827,0.120811,82946.0,82945.0,0.1206317]
[1744379111031,0.0603201,82940.0,82937.0,0.36562291]
[1744379111227,0.1206419,82938.0,82937.0,0.12546621]
[1744379111428,0.0001808,82946.0,82945.0,0.1206317]
[1744379111928,0.120811,82946.0,82945.0,0.1206317]
[1744379113332,0.0001808,82946.0,82945.0,0.1206317]
[1744379113728,0.0002208,82946.0,82945.0,0.1206317]
[1744379114430,1e-07,82946.0,82945.0,0.7314317]
[1744379114632,0.14263927,82958.0,82957.0,0.1206142]
[1744379114827,0.17687689,82964.0,82959.0,0.1206113]
[1744379115027,0.17682288,82964.0,82963.0,0.1206055]
[1744379115239,0.3608,82977.0,82970.0,0.1205953]
[1744379115739,0.21093253,82971.0,82970.0,0.7313953]
[1744379116123,0.21089253,82971.0,82970.0,0.74724815]
[1744379116338,0.21093253,82971.0,82970.0,0.74724815]
[1744379116539,0.21093253,82971.0,82970.0,0.7313953]
[1744379116842,0.21093253,82971.0,82970.0,0.74724479]
[1744379117135,0.21093253,82971.0,82970.0,0.4813953]
[1744379117333,4e-05,82971.0,82970.0,0.49724173]
[1744379117537,0.0001808,82979.0,82978.0,0.1205837]
[1744379117738,0.0001808,82979.0,82978.0,0.49723013]
[1744379117933,0.1207631,82979.0,82978.0,0.37664643]
[1744379118236,0.0602937,82976.0,82972.0,0.0602961]
[1744379118432,0.0602937,82976.0,82970.0,0.3608]
[1744379118433,0.2055857,82978.0,82977.0,0.1205852]
[1744379118630,0.0001808,82979.0,82978.0,0.1205837]
[1744379118937,0.0001808,82979.0,82978.0,0.0985837]
[1744379119335,0.0002208,82979.0,82978.0,0.0985837]
[1744379119943,0.0002208,82979.0,82978.0,0.4593837]
[1744379120137,0.0002208,82979.0,82978.0,0.0985837]
[1744379120745,0.1205881,82975.0,82974.0,0.4813869]
[1744379120943,0.1205881,82975.0,82974.0,0.4813895]
[1744379121131,0.1206055,82963.0,82962.0,0.1207877]
[1744379121333,0.3608,82975.0,82974.0,0.1205895]
[1744379121529,0.1810557,82979.0,82978.0,0.1205837]
[1744379121836,0.0001808,82979.0,82978.0,0.1205837]
[1744379122239,0.1207631,82979.0,82978.0,0.1205837]
[1744379122935,0.34826047,82979.0,82969.0,0.0602983]
[1744379123135,0.34826047,82979.0,82978.0,0.1205837]
[1744379123745,0.46884277,82979.0,82978.0,0.1205837]
[1744379123931,0.34826047,82979.0,82978.0,0.1205837]
[1744379124842,0.1205852,82977.0,82976.0,0.0602926]
[1744379125044,0.1205895,82975.0,82974.0,0.1205885]
[1744379125340,0.0907,82976.0,82975.0,0.1205881]
[1744379125543,0.34826047,82979.0,82978.0,0.1205837]
[1744379126043,0.34822047,82979.0,82978.0,0.1205837]
[1744379126439,0.1205852,82977.0,82976.0,0.0602926]
[1744379126645,0.1808897,82974.0,82973.0,0.060295]
[1744379127044,0.1205968,82970.0,82969.0,0.0602981]
[1744379127247,0.0602942,82975.0,82971.0,0.0602965]
[1744379127441,0.1809073,82965.0,82964.0,0.1206013]
[1744379127749,0.0837,82978.0,82964.0,0.1206013]
[1744379127750,0.3608,82970.0,82969.0,0.1205968]
[1744379127939,0.4813953,82970.0,82969.0,0.1205968]
[1744379128139,0.6505953,82970.0,82969.0,0.1205968]
[1744379128341,0.6505953,82970.0,82961.0,0.3608]
[1744379128342,0.1206055,82963.0,82951.0,0.3608]
[1744379128544,0.4814055,82963.0,82956.0,0.1206153]
[1744379128845,0.4814055,82963.0,82962.0,0.1207878]
[1744379129040,0.4814455,82963.0,82962.0,0.0001808]
[1744379129243,0.82948517,82963.0,82962.0,0.0001808]
[1744379129437,0.82948517,82963.0,82962.0,0.1207878]
[1744379129638,0.34807967,82963.0,82962.0,0.1207878]
[1744379130041,0.46864517,82963.0,82962.0,0.1207878]
[1744379130241,0.82944517,82963.0,82962.0,0.0001808]
[1744379130442,0.82948517,82963.0,82962.0,0.0001808]
[1744379130647,0.1206273,82948.0,82947.0,0.1206288]
[1744379130835,0.46866697,82948.0,82947.0,0.1206288]
[1744379131039,0.0603183,82942.0,82939.0,0.180954]
[1744379131240,0.1206404,82940.0,82939.0,0.180954]
[1744379131435,0.1206404,82940.0,82930.0,0.35255265]
[1744379131436,0.1206419,82938.0,82931.0,0.4211259]
[1744379131645,0.1206433,82937.0,82936.0,1e-08]
[1744379131946,0.0843,82937.0,82936.0,0.1206448]
[1744379132147,0.1206338,82944.0,82943.0,0.1206332]
[1744379132648,0.1206361,82942.0,82941.0,0.0603185]
[1744379133046,0.1726,82943.0,82942.0,0.1206361]
[1744379133246,0.2932346,82943.0,82942.0,0.1206361]
[1744379133841,0.2932746,82943.0,82942.0,0.1206361]
[1744379134245,0.2932746,82943.0,82942.0,0.0986361]
[1744379134551,0.0001808,82946.0,82945.0,0.1206317]
[1744379135051,0.1206375,82942.0,82941.0,0.1206361]
[1744379135450,0.3011375,82942.0,82941.0,0.1206361]
[1744379135645,0.1206404,82939.0,82938.0,0.2412792]
[1744379135840,0.1805,82942.0,82938.0,0.0603203]
[1744379136056,0.0001808,82946.0,82945.0,0.1206317]
[1744379136350,0.120811,82946.0,82945.0,0.1206317]
[1744379136544,0.481611,82946.0,82945.0,0.1206317]
[1744379136849,0.0603241,82934.0,82921.0,0.0856]
[1744379137056,0.1206666,82923.0,82922.0,0.1206641]
[1744379137254,0.1693,82933.0,82913.0,0.0603385]
[1744379137255,0.0603376,82916.0,82913.0,0.0603385]
[1744379137548,0.1206768,82914.0,82913.0,1e-07]
[1744379137752,0.4814768,82914.0,82913.0,1e-07]
[1744379138148,0.6507768,82914.0,82913.0,0.1206784]
[1744379138350,0.2899768,82914.0,82913.0,1e-07]
[1744379138855,0.63801647,82914.0,82913.0,1e-07]
[1744379139054,0.88801647,82914.0,82913.0,1e-07]
[1744379139846,0.51733967,82914.0,82913.0,1e-07]
[1744379140048,0.09733728,82922.0,82921.0,0.1206666]
[1744379140049,0.34803967,82922.0,82921.0,0.1206666]
[1744379140245,0.55510487,82922.0,82921.0,0.1206666]
[1744379140654,0.61543807,82922.0,82921.0,0.1206666]
[1744379140954,0.1206768,82914.0,82913.0,1e-07]
[1744379141252,0.4814768,82914.0,82913.0,1e-07]
[1744379141456,0.7314768,82914.0,82913.0,1e-07]
[1744379141857,0.1206957,82901.0,82900.0,0.0780001]
[1744379142046,0.1810646,82896.0,82895.0,0.1206981]
[1744379142247,0.58945837,82896.0,82895.0,0.1810482]
[1744379142553,0.0603536,82894.0,82893.0,0.1207073]
[1744379142943,0.060355,82892.0,82889.0,0.0048257]
[1744379143147,0.1787,82893.0,82890.0,0.0603552]
[1744379143355,0.34807967,82896.0,82889.0,0.065182]
[1744379143356,0.34807967,82896.0,82895.0,0.1207045]
[1744379143548,0.34803967,82896.0,82895.0,0.1207045]
[1744379143952,0.34807967,82896.0,82895.0,0.1207045]
[1744379144357,0.46878267,82896.0,82895.0,0.1207045]
[1744379145971,0.46878267,82896.0,82895.0,0.4815045]
[1744379146154,0.34807967,82896.0,82895.0,0.4815045]
[1744379146450,0.34807967,82896.0,82895.0,0.5715045]
[1744379146451,4e-05,82896.0,82895.0,0.5715045]
[1744379147353,0.18122613,82904.0,82903.0,0.1206928]
[1744379147552,0.0603467,82903.0,82889.0,0.0048257]
[1744379147860,0.1207117,82890.0,82889.0,0.0048257]
[1744379148158,0.0603533,82894.0,82872.0,0.120738]
[1744379148159,0.0603683,82873.0,82872.0,0.120738]
[1744379148353,0.0603683,82873.0,82872.0,0.0603682]
[1744379148354,0.1207421,82873.0,82872.0,0.0603682]
[1744379149156,0.1207423,82869.0,82868.0,0.2107438]
[1744379150360,0.1810999,82879.0,82878.0,0.0603639]
[1744379150553,0.18115131,82878.0,82877.0,0.1207302]
[1744379151057,0.1207294,82878.0,82877.0,0.1207307]
[1744379151361,0.1207694,82878.0,82877.0,0.1207307]
[1744379151558,4e-05,82878.0,82877.0,0.1207307]
[1744379151754,0.1207692,82878.0,82877.0,0.1207307]
[1744379152156,0.1207292,82878.0,82877.0,0.1207307]
[1744379152356,0.1207692,82878.0,82877.0,0.1207307]
[1744379152555,0.1207292,82878.0,82877.0,0.1207307]
[1744379152757,0.1207692,82878.0,82877.0,0.2130307]
[1744379152961,4e-05,82878.0,82877.0,0.2130307]
[1744379153572,0.00018093,82881.0,82880.0,0.1207263]
[1744379154457,5.401e-05,82887.0,82886.0,0.1207176]
[1744379154661,0.0603537,82893.0,82884.0,0.0603595]
[1744379154662,0.1810624,82893.0,82892.0,0.1207088]
[1744379155262,5.401e-05,82898.0,82897.0,0.1207015]
[1744379155467,0.12075411,82898.0,82897.0,0.1207015]
[1744379155667,0.1207001,82898.0,82897.0,0.0987015]
[1744379155871,0.1207401,82898.0,82897.0,0.0987015]
[1744379156862,0.1207401,82898.0,82897.0,0.1846015]
[1744379157262,0.1207401,82898.0,82897.0,0.2794015]
[1744379157761,0.1207401,82898.0,82897.0,0.0987015]
[1744379157963,0.1810647,82893.0,82892.0,0.1207039]
[1744379158161,0.1810647,82893.0,82892.0,0.181058]
[1744379158973,0.0603544,82892.0,82889.0,0.00018093]
[1744379159162,0.1207117,82890.0,82889.0,0.12089413]
[1744379159363,0.1207078,82897.0,82896.0,0.0603515]
[1744379160267,0.1207078,82897.0,82896.0,0.3608]
[1744379160268,4e-05,82897.0,82896.0,0.3608]
[1744379160463,9e-08,82913.0,82907.0,0.0603435]
[1744379160664,0.1254456,82936.0,82935.0,0.1206462]
[1744379160972,0.36569842,82936.0,82912.0,0.3608]
[1744379161172,0.1206783,82913.0,82912.0,0.4814797]
[1744379161373,0.0603413,82911.0,82905.0,0.3608]
[1744379161575,0.36098093,82921.0,82920.0,0.1206681]
[1744379161981,0.1206724,82919.0,82890.0,0.38832378]
[1744379162176,0.1206818,82913.0,82909.0,0.060342]
[1744379162381,0.1206796,82913.0,82910.0,0.0936]
[1744379162583,0.0603401,82912.0,82908.0,0.0603424]
[1744379162779,0.00022093,82921.0,82920.0,0.1206681]
[1744379162981,0.00022093,82921.0,82920.0,0.7314681]
[1744379163188,0.00018093,82921.0,82920.0,0.7314681]
[1744379163391,0.0048,82936.0,82935.0,0.1206462]
[1744379163797,4e-05,82936.0,82935.0,0.6108]
[1744379164097,0.07803139,82946.0,82938.0,0.0603209]
[1744379164389,0.0048,82960.0,82938.0,0.0603209]
[1744379164390,0.25134128,82960.0,82959.0,0.1206113]
[1744379164587,0.28298953,82966.0,82965.0,0.1206026]
[1744379164588,0.28291662,82966.0,82965.0,0.1206026]
[1744379165382,0.28295662,82966.0,82965.0,0.1206026]
[1744379165585,0.28295662,82966.0,82959.0,0.7216]
[1744379165586,0.09380012,82966.0,82959.0,0.7216]
[1744379165792,0.09380012,82966.0,82965.0,0.1206026]
[1744379165986,0.31698165,82973.0,82972.0,0.1205924]
[1744379166190,0.31698165,82973.0,82972.0,0.4813924]
[1744379166490,0.43757265,82973.0,82972.0,0.3608]
[1744379166691,0.1206099,82960.0,82949.0,0.0603129]
[1744379166987,0.31698165,82973.0,82950.0,0.38832378]
[1744379166988,0.1817,82972.0,82950.0,0.38832378]
[1744379167190,0.3022924,82972.0,82971.0,0.1205939]
[1744379167488,0.1205995,82968.0,82960.0,0.0603047]
[1744379167694,0.1206061,82963.0,82957.0,0.060307]
[1744379167988,0.0603015,82965.0,82964.0,0.1206041]
[1744379168191,0.3608,82969.0,82966.0,0.0603]
[1744379168391,4e-05,82972.0,82971.0,0.1205939]
[1744379168594,0.00018081,82974.0,82973.0,0.120591]
[1744379168891,0.12077031,82974.0,82973.0,0.120591]
[1744379169082,0.12077031,82974.0,82964.0,0.0603015]
[1744379169083,0.00018081,82974.0,82964.0,0.0603015]
[1744379169283,0.1809032,82968.0,82967.0,0.1205983]
[1744379169588,0.00018081,82974.0,82973.0,0.120591]
[1744379170384,0.12077031,82974.0,82973.0,0.120591]
[1744379170886,0.1205968,82969.0,82968.0,0.060299]
[1744379171189,0.0602975,82971.0,82953.0,0.0603095]
[1744379171190,0.0603084,82956.0,82953.0,0.0603095]
[1744379171394,0.0603053,82960.0,82959.0,0.1206099]
[1744379171598,0.0603084,82957.0,82953.0,0.0603095]
[1744379171793,0.1206215,82952.0,82951.0,0.00018081]
[1744379171994,0.3608,82952.0,82951.0,0.00018081]
[1744379172290,0.0602999,82967.0,82964.0,0.1205983]
[1744379172490,0.0944,82970.0,82966.0,0.0603006]
[1744379172689,0.09447291,82970.0,82968.0,0.1205983]
[1744379173084,0.00018081,82974.0,82973.0,0.120591]
[1744379173491,5.401e-05,82981.0,82980.0,0.1205808]
[1744379173688,0.1,83000.0,82983.0,0.1205765]
[1744379173887,0.06033691,82991.0,82983.0,0.1205765]
[1744379174195,0.1205715,82987.0,82983.0,0.1205765]
[1744379174493,0.00484,82984.0,82983.0,0.1205765]
[1744379174689,0.00484,82984.0,82983.0,0.3705765]
[1744379174890,5.401e-05,82998.0,82983.0,0.3705765]
[1744379174891,1e-08,82992.0,82991.0,0.1205648]
[1744379175092,1e-08,82992.0,82991.0,0.4813648]
[1744379175395,4.001e-05,82992.0,82991.0,0.7313648]
[1744379175597,1e-08,82992.0,82991.0,0.7313648]
[1744379176089,0.1205316,83014.0,82999.0,0.1205532]
[1744379176289,0.12058731,83013.0,82999.0,0.4813532]
[1744379176497,0.088,83018.0,82999.0,0.4813532]
[1744379176690,0.00491977,83008.0,82999.0,0.4813532]
[1744379177298,0.10004,83000.0,82999.0,0.4813532]
[1744379178586,0.00491977,83008.0,83005.0,0.0602722]
[1744379178787,0.00906547,83072.0,83007.0,0.3608]
[1744379178991,0.0863,83078.0,83038.0,0.6024822]
[1744379179294,0.0361241,83079.0,83078.0,0.1204386]
[1744379179591,0.0361241,83079.0,83077.0,0.3608]
[1744379179592,0.0602076,83095.0,83077.0,0.3608]
[1744379179891,0.1204386,83078.0,83077.0,0.3608]
[1744379180203,0.1204776,83079.0,83078.0,0.00018055]
[1744379180494,4e-05,83079.0,83078.0,0.00018055]
[1744379180688,0.1204771,83079.0,83078.0,0.12061915]
[1744379181699,0.1204771,83079.0,83078.0,0.00018055]
[1744379181992,0.1204771,83079.0,83078.0,0.12061915]
[1744379182591,4e-05,83079.0,83078.0,0.12061915]
[1744379182999,0.1204771,83079.0,83078.0,0.12061915]
[1744379183699,0.1204771,83079.0,83078.0,0.09948916]
[1744379183896,4e-05,83079.0,83066.0,0.4210276]
[1744379184098,0.0602312,83062.0,83057.0,0.36561594]
[1744379184298,0.0602312,83062.0,83047.0,0.3608]
[1744379184299,0.0602401,83050.0,83047.0,0.4812827]
[1744379184498,0.1204922,83041.0,83040.0,0.3608]
[1744379184695,0.1204922,83041.0,83013.0,0.060266]
[1744379184696,0.120498,83037.0,83016.0,0.3608]
[1744379184897,0.1205271,83017.0,83016.0,0.3608]
[1744379185202,0.0602469,83040.0,83035.0,0.0602503]
[1744379185404,0.0602584,83024.0,83019.0,0.0602617]
[1744379185590,0.1205271,83017.0,83016.0,0.3608]
[1744379185789,0.1205124,83028.0,83016.0,0.3608]
[1744379185990,0.093,83027.0,83026.0,0.120514]
[1744379186394,0.00018007,83030.0,83029.0,0.1205097]
[1744379186595,7e-08,83030.0,83029.0,0.4813097]
[1744379186797,7e-08,83030.0,83029.0,0.7313097]
[1744379187098,0.1802,83051.0,83050.0,0.1204792]
[1744379187399,0.0048,83056.0,83055.0,0.1204719]
[1744379187988,0.1204404,83077.0,83055.0,0.0602356]
[1744379188188,0.0872,83076.0,83066.0,0.3608]
[1744379188401,0.1204545,83067.0,83066.0,0.481256]
[1744379188698,0.0872,83076.0,83075.0,0.1204429]
[1744379189000,0.1204279,83086.0,83076.0,0.0602206]
[1744379189199,0.3608,83095.0,83079.0,0.1204371]
[1744379189407,0.1806609,83078.0,83077.0,0.1806569]
[1744379189699,0.0938,83079.0,83078.0,0.1204386]
[1744379189895,5.401e-05,83092.0,83079.0,0.1204371]
[1744379190093,1e-07,83080.0,83079.0,0.1204371]
[1744379190296,4.01e-05,83080.0,83079.0,0.3704371]
[1744379190504,1e-07,83080.0,83079.0,0.1204371]
[1744379190800,4.01e-05,83080.0,83079.0,0.3069371]
[1744379190995,1e-07,83080.0,83079.0,0.3069371]
[1744379191604,0.1897,83098.0,83097.0,0.120411]
[1744379191799,0.1897,83098.0,83097.0,0.481211]
[1744379192099,0.0959,83098.0,83097.0,0.481211]
[1744379192305,0.09594,83098.0,83097.0,0.481211]
[1744379192899,0.2163496,83098.0,83097.0,0.481211]
[1744379193098,0.2163496,83098.0,83067.0,0.7362279]
[1744379193099,0.1204212,83090.0,83083.0,0.3608]
[1744379193498,0.1204212,83090.0,83083.0,0.4210155]
[1744379193899,0.1204212,83090.0,83089.0,0.12060315]
[1744379194108,0.18148135,83096.0,83093.0,0.0602078]
[1744379194302,0.1906,83095.0,83094.0,0.1204151]
[1744379194695,0.19065401,83095.0,83094.0,0.1204151]
[1744379195100,0.1906,83095.0,83094.0,0.1204151]
[1744379195303,0.19064,83095.0,83094.0,0.1204151]
[1744379195603,0.1,83100.0,83094.0,0.7312151]
[1744379195799,0.1,83100.0,83099.0,0.3608]
[1744379196008,0.1,83100.0,83099.0,0.4812081]
[1744379196206,0.1,83100.0,83099.0,0.1204081]
[1744379196400,0.35004,83100.0,83099.0,0.1204081]
[1744379196606,0.71084,83100.0,83097.0,0.020413]
[1744379196810,0.71084,83100.0,83089.0,0.00018055]
[1744379196811,0.1851,83099.0,83089.0,0.00018055]
[1744379197003,0.3608,83090.0,83076.0,0.13392]
[1744379197205,0.12044,83077.0,83076.0,0.13392]
[1744379197404,0.1204516,83073.0,83072.0,0.1806618]
[1744379197599,0.3608,83082.0,83061.0,0.1204578]
[1744379197813,0.1204647,83060.0,83059.0,0.3608]
[1744379198106,0.1806882,83066.0,83062.0,0.0602302]
[1744379198305,0.1806882,83066.0,83065.0,0.1204574]
[1744379198497,0.1807282,83066.0,83065.0,0.1204574]
[1744379198702,4e-05,83066.0,83065.0,0.1204574]
[1744379199101,0.0602258,83069.0,83068.0,0.1204531]
[1744379199708,0.0602244,83071.0,83070.0,0.1204502]
[1744379199911,0.1204531,83069.0,83068.0,0.1204523]
[1744379200207,0.1806779,83071.0,83063.0,0.3608]
[1744379200400,0.0602244,83071.0,83070.0,0.1204502]
[1744379200597,0.0602274,83067.0,83060.0,0.0602319]
[1744379200908,0.0602389,83051.0,83038.0,0.0602476]
[1744379201107,0.1204698,83059.0,83058.0,0.1204647]
[1744379201415,0.0602644,83071.0,83050.0,0.3608]
[1744379201707,0.1204529,83070.0,83069.0,0.1204502]
[1744379202106,0.1204618,83062.0,83061.0,0.18086665]
[1744379202304,0.0602271,83068.0,83067.0,0.1204545]
[1744379202609,4e-05,83070.0,83065.0,0.4812568]
[1744379202913,0.0602271,83068.0,83067.0,0.1204545]
[1744379203108,0.0602271,83068.0,83067.0,0.4812545]
[1744379203312,0.06023,83064.0,83061.0,0.06041165]
[1744379203504,0.1204618,83062.0,83061.0,0.06041165]
[1744379203903,0.1204618,83062.0,83061.0,0.00018055]
[1744379204102,0.0602361,83056.0,83040.0,0.3608]
[1744379204414,0.0602388,83053.0,83052.0,0.1204692]
[1744379204613,0.3608,83069.0,83047.0,0.3388]
[1744379204913,0.1204617,83063.0,83062.0,0.1204603]
[1744379205109,0.3608,83079.0,83060.0,0.0602321]
[1744379205307,0.1204719,83055.0,83054.0,0.42121685]
[1744379205513,0.1204684,83058.0,83057.0,0.1204676]
[1744379208116,0.3608,83084.0,83055.0,0.0602354]
[1744379208313,0.0602302,83065.0,83062.0,0.3608]
[1744379208515,0.1204676,83058.0,83057.0,0.180703]
[1744379208905,0.0602294,83064.0,83055.0,0.3608]
[1744379208906,0.1204625,83062.0,83056.0,0.060235]
[1744379209105,0.1204625,83062.0,83061.0,0.1204618]
[1744379209317,0.0602306,83063.0,83062.0,0.1204618]
[1744379209514,0.1205012,83065.0,83064.0,0.1204589]
[1744379209723,0.1205012,83065.0,83064.0,0.4812589]
[1744379210010,4e-05,83065.0,83064.0,0.4812589]
[1744379210203,0.0048,83080.0,83070.0,0.1204502]
[1744379210406,0.1204531,83069.0,83068.0,0.1806784]
[1744379210605,0.00018055,83071.0,83070.0,0.1204502]
[1744379211010,0.12062925,83071.0,83070.0,0.1204502]
[1744379211210,0.00018055,83071.0,83070.0,0.4812502]
[1744379211511,0.00022055,83071.0,83070.0,0.4812502]
[1744379211711,0.00485401,83080.0,83079.0,0.1204371]
[1744379211907,0.00485401,83080.0,83079.0,0.4812371]
[1744379212111,0.00465941,83080.0,83079.0,0.9140371]
[1744379212315,1e-08,83080.0,83079.0,0.9140371]
[1744379212518,0.1,83100.0,83079.0,0.9140371]
[1744379212519,0.1,83100.0,83099.0,0.1204081]
[1744379212715,0.1,83100.0,83099.0,0.4812081]
[1744379213213,0.2204467,83100.0,83099.0,0.3608]
[1744379213415,0.0602068,83096.0,83093.0,0.0602079]
[1744379213712,0.1204154,83095.0,83094.0,0.1204139]
[1744379214220,0.1204154,83094.0,83093.0,0.3608]
[1744379214720,0.1204183,83092.0,83091.0,0.12060025]
[1744379214916,0.1204183,83092.0,83091.0,0.00018055]
[1744379215111,0.3704183,83092.0,83091.0,0.00018055]
[1744379216018,0.9149183,83092.0,83091.0,0.00018055]
[1744379216320,0.3041183,83092.0,83091.0,0.12060025]
[1744379216719,0.3041183,83092.0,83091.0,0.48140025]
[1744379217111,0.3041183,83092.0,83091.0,0.36098055]
[1744379217419,0.3041183,83092.0,83091.0,0.00018055]
[1744379217622,0.1204313,83083.0,83082.0,0.45941325]
[1744379218416,0.1204313,83083.0,83073.0,0.0602226]
[1744379218417,0.1204415,83076.0,83071.0,0.0602238]
[1744379218617,0.240872,83081.0,83080.0,0.1204328]
[1744379218813,0.1204371,83079.0,83078.0,0.0602186]
[1744379219017,0.1204415,83077.0,83076.0,0.1204405]
[1744379219219,0.0907,83078.0,83077.0,0.12044]
[1744379219421,0.1204415,83076.0,83075.0,0.69146721]
[1744379219821,0.1204415,83076.0,83075.0,0.4812415]
[1744379220017,0.2713604,83078.0,83077.0,0.12044]